bitfinex/quotes_SOLUSD_20260120
["timestamp","ask_amount","ask_price","bid_price","bid_amount"]
[1768948710199,4.1191654,125.95,125.91,7.03134141]
[1768948710405,4.1191654,125.97,125.92,7.03134141]
[1768948710712,174.43663599,126.0,125.89,27.80151645]
[1768948710713,11.15050681,125.99,125.93,11.08867725]
[1768948710912,11.15050681,125.99,125.94,7.94028902]
[1768948712112,4.1191654,125.98,125.94,7.94028902]
[1768948712306,4.1191654,125.98,125.93,7.03134141]
[1768948712307,4.1191654,125.98,125.93,7.94068268]
[1768948712744,4.1191654,125.96,125.92,7.94129922]
[1768948712907,4.1191654,125.96,125.91,7.94215305]
[1768948712908,11.15050681,125.96,125.91,7.94215305]
[1768948713430,4.1191654,125.96,125.91,38.8862826]
[1768948713638,4.1191654,125.96,125.92,7.03134141]
[1768948713818,11.15050681,125.98,125.92,7.03134141]
[1768948714130,4.1191654,125.98,125.93,7.03134141]
[1768948714506,4.1191654,125.98,125.94,7.94028902]
[1768948714711,11.35050681,126.0,125.94,38.87968883]
[1768948715024,4.3191654,126.0,125.95,7.03134141]
[1768948716425,4.1191654,125.99,125.94,27.79101158]
[1768948716730,4.1191654,125.99,125.94,34.82235299]
[1768948716934,7.23134141,126.0,125.94,38.87968883]
[1768948717135,0.2,126.0,125.95,7.03134141]
[1768948717615,0.2,126.0,125.95,11.08867725]
[1768948717811,0.2,126.0,125.96,11.08867725]
[1768948718320,4.1191654,126.02,125.97,7.03134141]
[1768948718826,4.1191654,126.02,125.98,7.93776789]
[1768948719327,0.2,126.03,125.99,7.03134141]
[1768948720030,0.2,126.03,126.0,7.03134141]
[1768948720611,0.2,126.03,125.99,7.03134141]
[1768948721021,0.2,126.03,126.0,7.93647351]
[1768948721324,4.3191654,126.03,125.99,7.93686494]
[1768948721512,4.3191654,126.03,125.98,26.87576115]
[1768948721513,4.1191654,126.02,125.98,7.93773766]
[1768948722109,11.35050681,126.03,125.99,7.93703007]
[1768948722428,11.35050681,126.03,125.98,7.93758312]
[1768948722429,4.1191654,126.01,125.98,7.93758312]
[1768948722821,11.35050681,126.03,125.98,7.93758312]
[1768948723133,0.2,126.03,125.99,7.03134141]
[1768948723514,0.2,126.03,126.0,7.03134141]
[1768948723715,0.2,126.03,125.99,11.08867725]
[1768948724524,1e-08,126.03,126.02,4.37732756]
[1768948724716,1e-08,126.03,126.02,7.03134141]
[1768948724931,4.29174002,126.03,125.99,7.93684852]
[1768948725234,1e-08,126.03,125.99,14.96818993]
[1768948725414,1e-08,126.03,126.0,7.03134141]
[1768948726023,1e-08,126.03,125.99,14.96818993]
[1768948726229,1e-08,126.03,125.99,7.93684852]
[1768948726938,7.03134142,126.03,125.99,7.93684852]
[1768948727112,11.52042749,126.03,125.99,7.93684852]
[1768948727616,4.48908607,125.99,125.94,26.88135595]
[1768948727815,4.48908607,125.98,125.94,7.93990939]
[1768948728148,11.52042748,126.0,125.95,7.93932743]
[1768948729230,11.52042748,126.0,125.95,34.81981532]
[1768948729434,4.48908607,125.96,125.91,7.03134141]
[1768948729737,4.48908607,125.95,125.91,19.85493634]
[1768948729939,4.48908607,125.96,125.93,7.94057642]
[1768948730743,4.48908607,125.98,125.93,7.03134141]
[1768948731118,4.48908607,125.99,125.94,11.38398789]
[1768948732642,4.48908607,125.99,125.95,7.93965859]
[1768948733021,11.52042748,125.98,125.94,7.94006294]
[1768948734531,11.52042748,125.98,125.93,27.79209747]
[1768948734738,11.52042748,125.99,125.93,39.17608536]
[1768948734924,11.49708839,125.99,125.93,39.15274627]
[1768948735645,4.48908607,125.99,125.94,11.3606488]
[1768948736944,11.49708839,125.99,125.95,7.93965859]
[1768948738634,7.00800232,125.97,125.92,4.35264648]
[1768948738928,11.49708839,125.98,125.93,4.35264648]
[1768948739843,11.49708839,125.98,125.93,32.14578434]
[1768948740054,11.49708839,125.98,125.94,4.35264648]
[1768948740347,4.48908607,126.02,125.95,4.35264648]
[1768948740523,7.00800232,126.0,125.97,7.93839803]
[1768948741028,4.48908607,125.97,125.95,7.93921832]
[1768948741238,4.42908608,125.97,125.94,7.94001023]
[1768948741450,7.93531414,126.02,125.94,4.35264648]
[1768948741627,7.00800232,126.01,125.97,4.35264648]
[1768948741834,7.00800232,126.02,125.97,4.35264648]
[1768948742069,1e-08,126.03,125.97,4.35264648]
[1768948742070,7.00800232,126.01,125.97,4.35264648]
[1768948742255,7.00800232,126.0,125.96,27.786582]
[1768948742558,7.00800232,125.98,125.94,27.78990221]
[1768948742752,7.00800232,125.98,125.94,7.94028902]
[1768948743373,7.00800232,125.98,125.94,12.2929355]
[1768948743670,11.49708839,125.99,125.94,12.2929355]
[1768948744360,7.00800232,125.98,125.94,12.2929355]
[1768948745557,4.48908607,125.99,125.94,12.2929355]
[1768948745558,11.49708839,125.99,125.94,12.2929355]
[1768948745759,4.48908607,125.99,125.94,19.30093782]
[1768948745966,11.49708839,125.99,125.94,12.2929355]
[1768948747868,11.49708839,125.98,125.93,19.85184291]
[1768948748244,11.49708839,125.98,125.93,24.20448939]
[1768948748937,11.49708839,125.98,125.93,32.14540894]
[1768948749141,11.49708839,125.99,125.94,4.35264648]
[1768948749354,7.00800232,125.98,125.94,4.35264648]
[1768948749562,11.49708839,125.98,125.93,32.14540894]
[1768948749771,4.48908607,125.98,125.94,4.35264648]
[1768948749976,7.00800232,125.99,125.94,4.35264648]
[1768948750267,11.49708839,125.99,125.94,4.35264648]
[1768948750860,11.49708839,126.01,125.96,4.35264648]
[1768948751055,7.00800232,126.0,125.96,4.35264648]
[1768948751258,11.49708839,126.01,125.96,12.29146286]
[1768948752046,11.49708839,126.0,125.96,7.93881638]
[1768948752641,4.48908607,125.99,125.96,7.93881638]
[1768948752949,4.42908608,125.99,125.96,7.93881638]
[1768948753161,7.00800232,126.01,125.96,7.93881638]
[1768948753662,7.00800232,126.02,125.97,4.35264648]
[1768948754067,7.00800232,126.01,125.97,4.35264648]
[1768948755354,7.00800232,126.01,125.98,7.93776789]
[1768948756258,11.08917262,126.02,125.98,7.93776789]
[1768948757245,11.08917262,126.02,125.98,32.01298319]
[1768948757442,7.00800233,126.03,125.98,32.01298319]
[1768948757654,7.00800233,126.03,125.98,39.02098551]
[1768948757870,1e-08,126.03,125.99,4.23079556]
[1768948758065,7.00800233,126.03,125.99,4.23079556]
[1768948758256,1e-08,126.03,125.99,4.23079556]
[1768948758455,7.00800233,126.03,125.99,4.23079556]
[1768948758654,7.00800232,126.02,125.99,4.23079556]
[1768948759059,11.08917263,126.03,125.99,4.23079556]
[1768948759471,4.08117031,126.03,126.0,7.93650793]
[1768948759663,11.08917263,126.03,126.0,7.93650793]
[1768948760068,1e-08,126.03,126.0,7.93650793]
[1768948760449,4.08117031,126.03,126.0,7.93650793]
[1768948760767,1e-08,126.03,126.0,12.16730349]
[1768948763048,1e-08,126.03,126.01,4.23079556]
[1768948764562,1e-08,126.04,126.03,7.00800232]
[1768948764761,1e-08,126.04,126.03,7.93461874]
[1768948766176,1e-08,126.04,126.03,12.1654143]
[1768948770665,1e-08,126.04,126.03,19.17341662]
[1768948771076,4.08117031,126.04,126.02,7.9348937]
[1768948771384,4.08117031,126.04,126.02,4.23079556]
[1768948771385,1e-08,126.04,126.02,4.23079556]
[1768948771564,1e-08,126.04,126.01,11.23879788]
[1768948771779,1e-08,126.04,126.02,7.00800232]
[1768948772064,1e-08,126.04,126.03,4.23079556]
[1768948772292,1e-08,126.04,126.03,19.17341662]
[1768948773359,1e-08,126.04,126.03,7.93461874]
[1768948774167,1e-08,126.04,126.03,19.17341662]
[1768948774370,1e-08,126.04,126.03,12.1654143]
[1768948774579,1e-08,126.04,126.02,7.93499855]
[1768948774782,1e-08,126.04,126.02,7.93524711]
[1768948775786,4.08117031,126.04,126.01,7.9356544]
[1768948776284,1e-08,126.04,126.01,34.78335198]
[1768948776488,1e-08,126.04,126.02,4.23079556]
[1768948776679,1e-08,126.04,126.03,12.1654143]
[1768948776986,4.0811703,126.09,126.03,30.38365042]
[1768948777288,6.69365513,126.09,126.04,6.84328039]
[1768948777485,4.0811703,126.08,126.04,4.23079556]
[1768948777680,4.2811703,126.12,126.03,32.00196115]
[1768948777885,4.0811703,126.07,126.03,34.61444598]
[1768948778086,4.0811703,126.08,126.03,34.61444598]
[1768948778977,4.0811703,126.08,126.05,7.93335977]
[1768948779580,11.07852563,126.1,126.05,7.93335977]
[1768948779791,4.0811703,126.09,126.05,7.93335977]
[1768948780903,4.2811703,126.12,126.08,4.23079556]
[1768948781107,4.0811703,126.11,126.07,14.9290109]
[1768948781285,6.99735533,126.09,126.06,4.23079556]
[1768948781475,4.0811703,126.09,126.05,7.93299703]
[1768948782288,4.0811703,126.08,126.04,4.23079556]
[1768948782492,4.0811703,126.09,126.04,4.23079556]
[1768948782693,11.07852563,126.09,126.04,4.23079556]
[1768948783052,4.0811703,126.09,126.05,7.93282806]
[1768948783380,11.07852563,126.1,126.08,2.51421161]
[1768948783585,4.2811703,126.12,126.08,2.51421161]
[1768948783780,4.2811703,126.12,126.08,9.51156694]
[1768948784497,4.0811703,126.11,126.08,2.51421161]
[1768948784909,4.0811703,126.11,126.04,17.36]
[1768948784910,11.11342915,126.09,126.04,19.31477137]
[1768948785109,4.1710702,126.08,126.04,19.31477137]
[1768948785421,4.1710702,126.06,126.0,4.08889181]
[1768948785703,4.1710702,126.05,126.01,6.99735533]
[1768948786082,4.1710702,126.05,126.01,14.93306809]
[1768948786296,4.1710702,126.05,126.01,19.0219599]
[1768948786712,10.1275834,126.09,126.03,11.08624714]
[1768948786892,28.54842553,126.08,126.04,4.08889181]
[1768948787105,4.1710702,126.08,126.04,14.93127472]
[1768948787589,4.1710702,126.08,126.04,6.99735533]
[1768948787785,4.1710702,126.08,126.04,14.93124303]
[1768948789102,4.1710702,126.08,126.03,12.02341075]
[1768948789311,11.16842553,126.08,126.04,7.9339417]
[1768948789494,4.1710702,126.1,126.04,19.02018884]
[1768948789707,11.16842553,126.09,126.04,19.02018884]
[1768948790012,4.1710702,126.09,126.04,7.9339417]
[1768948790215,4.1710702,126.08,126.04,19.02018884]
[1768948790530,6.99735533,126.09,126.05,4.08889181]
[1768948790886,11.16842553,126.09,126.05,4.08889181]
[1768948791082,11.16842553,126.09,126.05,12.02220265]
[1768948791308,11.16842553,126.08,126.03,4.08889181]
[1768948791497,4.1710702,126.07,126.03,19.02052867]
[1768948792009,11.16842553,126.06,126.02,7.93497418]
[1768948792388,17.38,126.07,125.99,17.36]
[1768948792389,4.1710702,126.04,125.99,23.9313626]
[1768948792595,4.1710702,126.04,126.0,11.08624714]
[1768948792794,4.1710702,126.04,126.0,4.08889181]
[1768948793115,6.99735533,126.05,126.0,19.02235682]
[1768948793619,166.5,126.12,126.01,4.08889181]
[1768948793791,22.61590395,126.11,126.03,11.08624714]
[1768948794001,6.99735533,126.08,126.03,11.08624714]
[1768948794225,11.16842553,126.08,126.03,11.08624714]
[1768948794719,4.1710702,126.07,126.03,14.93134658]
[1768948795120,11.16842553,126.07,126.02,19.02119833]
[1768948795588,11.16842553,126.07,126.03,7.93461355]
[1768948795794,11.16842553,126.06,126.01,14.93265318]
[1768948795988,4.1710702,126.05,126.01,14.93265318]
[1768948796920,4.1710702,126.05,126.01,7.93529785]
[1768948797412,4.1710702,126.05,126.01,19.02514258]
[1768948797920,17.38,126.07,126.02,11.08984473]
[1768948797921,4.1710702,126.07,126.02,11.08984473]
[1768948798793,4.1710702,126.06,126.02,7.00095292]
[1768948800319,4.1710702,126.09,126.04,11.08984473]
[1768948800622,11.17202312,126.09,126.04,11.08984473]
[1768948800925,4.1710702,126.08,126.03,4.08889181]
[1768948801101,4.1710702,126.08,126.04,7.00095292]
[1768948801618,4.1710702,126.05,126.01,11.08984473]
[1768948801791,11.17202312,126.07,126.02,7.00095292]
[1768948801995,11.17202312,126.07,126.01,4.08889181]
[1768948801996,4.1710702,126.06,126.01,11.08984473]
[1768948802196,4.1710702,126.07,126.02,7.00095292]
[1768948802420,4.1710702,126.07,126.03,7.00095292]
[1768948802716,4.1710702,126.07,126.02,7.00095292]
[1768948802917,11.17202312,126.09,126.04,4.08889181]
[1768948803122,17.38,126.08,126.04,11.08984473]
[1768948803299,4.1710702,126.08,126.04,11.08984473]
[1768948804196,4.1710702,126.08,126.04,14.93469735]
[1768948804397,4.1710702,126.08,126.03,7.93434654]
[1768948804598,4.1710702,126.07,126.03,14.93529946]
[1768948805122,4.1710702,126.07,126.04,7.93385161]
[1768948806317,4.1710702,126.07,126.03,7.93455053]
[1768948806525,4.1710702,126.06,126.02,12.02384597]
[1768948806730,4.1710702,126.06,126.02,19.02479889]
[1768948807229,4.1710702,126.06,126.03,7.00095292]
[1768948807900,4.1710702,126.06,126.02,12.02384597]
[1768948807901,4.1710702,126.06,126.02,19.02479889]
[1768948809012,4.1710702,126.06,126.02,14.63671966]
[1768948809922,4.1710702,126.06,126.02,12.02384597]
[1768948810127,4.1710702,126.06,126.02,14.63671966]
[1768948811825,4.1710702,126.06,126.01,7.93586394]
[1768948812008,4.1710702,126.05,126.0,12.02515264]
[1768948812208,4.1710702,126.05,126.0,14.63802633]
[1768948813226,4.1710702,126.05,126.01,14.63759388]
[1768948814227,4.1710702,126.05,125.99,12.02568741]
[1768948814228,4.1710702,126.04,125.99,12.02568741]
[1768948814529,4.1710702,126.03,125.99,4.08889181]
[1768948815327,4.45191684,126.02,125.97,15.47539423]
[1768948815624,7.93807782,126.02,125.97,15.47539423]
[1768948815805,4.45191684,126.01,125.97,15.47539423]
[1768948818337,4.45191684,126.02,125.98,7.53748891]
[1768948818521,4.45191684,126.03,125.99,7.53748891]
[1768948819414,4.45191684,126.03,125.99,15.47455685]
[1768948819728,4.45191684,126.05,126.0,7.53748891]
[1768948820034,4.45191684,126.05,126.01,7.53748891]
[1768948820819,4.45191684,126.04,126.0,7.53748891]
[1768948821018,7.93807782,126.05,126.0,7.53748891]
[1768948821436,7.93807782,126.05,126.01,7.9358781]
[1768948821610,4.45191684,126.04,125.97,17.36]
[1768948821817,4.45191684,126.02,125.98,7.93736983]
[1768948822019,4.45191684,126.02,125.99,7.9370664]
[1768948822240,25.31807782,126.04,126.0,7.93647241]
[1768948822437,4.45191684,126.03,126.0,7.93647241]
[1768948823238,4.45191684,126.03,126.0,11.42263339]
[1768948823836,4.45191684,126.03,126.0,7.93647241]
[1768948826744,7.93807782,126.06,126.01,7.53748891]
[1768948827718,4.45191684,126.05,126.01,4.05132793]
[1768948827931,4.45191684,126.05,126.01,15.47327819]
[1768948829554,4.45191684,126.05,126.01,11.98711721]
[1768948829723,4.45191684,126.05,126.01,15.47327819]
[1768948829924,4.45191684,126.05,126.01,3.48616098]
[1768948830229,4.45191684,126.05,126.01,7.53748891]
[1768948830743,4.45191684,126.05,126.01,15.47329373]
[1768948831050,4.45191684,126.07,126.03,7.53748891]
[1768948831234,5.24877929,126.06,126.03,4.05132793]
[1768948832136,5.24877929,126.06,126.03,11.98582413]
[1768948832645,4.45191684,126.07,126.03,11.98582413]
[1768948833642,4.45191684,126.07,126.03,15.47198511]
[1768948833822,4.45191684,126.08,126.04,7.53748891]
[1768948834531,4.45191684,126.08,126.05,3.48616098]
[1768948834728,21.83191684,126.1,126.05,7.53748891]
[1768948834923,25.31807782,126.1,126.05,7.53748891]
[1768948835828,25.31807782,126.1,126.05,4.05132793]
[1768948836636,25.31807782,126.1,126.05,11.9845497]
[1768948836835,4.45191684,126.1,126.06,4.05132793]
[1768948838024,4.45191684,126.1,126.06,11.98376039]
[1768948839146,20.86616098,126.11,126.07,4.05132793]
[1768948839329,25.31807782,126.11,126.07,4.02132793]
[1768948840233,4.45191684,126.09,126.06,7.93243246]
[1768948840630,7.93807782,126.1,126.06,7.93243246]
[1768948840836,7.75314916,126.1,126.06,7.93243246]
[1768948841238,4.45191684,126.1,126.06,4.05132793]
[1768948841436,21.83191684,126.11,126.07,4.05132793]
[1768948841825,25.31807782,126.11,126.07,4.05132793]
[1768948843333,21.83191684,126.11,126.07,11.98329475]
[1768948843665,8.13807782,126.12,126.08,4.05132793]
[1768948843828,3.48616098,126.11,126.08,4.05132793]
[1768948844235,7.93807782,126.11,126.08,4.05132793]
[1768948845758,7.90930601,126.1,126.06,12.16758892]
[1768948845933,7.90930601,126.1,126.06,7.93242173]
[1768948845934,4.42314503,126.09,126.06,7.93242173]
[1768948846740,4.42314503,126.09,126.06,12.16758892]
[1768948847051,4.42314503,126.11,126.06,12.16758892]
[1768948847225,4.42314503,126.09,126.06,7.93241011]
[1768948847429,4.42314503,126.09,126.06,12.1675773]
[1768948847631,4.42314503,126.09,126.05,7.93321226]
[1768948847826,4.42314503,126.1,126.06,12.16775725]
[1768948848026,7.90930601,126.1,126.06,4.23516719]
[1768948848559,7.90930601,126.09,126.06,4.23516719]
[1768948849057,4.42314503,126.09,126.06,4.23516719]
[1768948849458,3.48616098,126.08,126.05,12.16821447]
[1768948849757,3.48616098,126.06,126.02,24.07278495]
[1768948849941,3.48616098,126.06,126.03,7.9345098]
[1768948850348,7.90930601,126.06,126.03,7.9345098]
[1768948850562,7.90930601,126.06,126.02,4.23516719]
[1768948850743,7.90930601,126.06,126.02,12.17005663]
[1768948852234,3.48616098,126.06,126.02,7.93488944]
[1768948852447,4.42314503,126.05,126.01,7.93560633]
[1768948852848,4.42314503,126.05,126.02,7.93518396]
[1768948854536,4.42314503,126.05,126.02,12.17035115]
[1768948854753,7.90930601,126.06,126.02,12.17035115]
[1768948856858,7.90775934,126.06,126.02,12.17035115]
[1768948857361,17.38,126.07,126.03,4.23516719]
[1768948857861,7.90775934,126.07,126.03,4.23516719]
[1768948858450,3.48461431,126.06,126.03,4.23516719]
[1768948858961,7.90775934,126.07,126.03,12.16957139]
[1768948859260,7.90775934,126.08,126.04,4.23516719]
[1768948860457,7.90775934,126.09,126.04,4.23516719]
[1768948860845,7.90775934,126.09,126.05,12.16852696]
[1768948861447,4.42314503,126.08,126.05,12.16852696]
[1768948861648,7.90775934,126.09,126.05,12.16852696]
[1768948862857,3.48461431,126.11,126.08,4.23516719]
[1768948864269,3.48461431,126.1,126.07,4.23516719]
[1768948864644,7.90775934,126.11,126.07,4.23516719]
[1768948865065,7.90775934,126.1,126.06,7.93240505]
[1768948865366,7.90775934,126.1,126.06,12.16757224]
[1768948866875,4.42314503,126.1,126.06,12.16757224]
[1768948867049,7.90775934,126.11,126.07,4.23516719]
[1768948868474,4.42314503,126.11,126.07,4.23516719]
[1768948868658,7.90775934,126.11,126.07,4.23516719]
[1768948868970,6.1565132,126.12,126.07,4.23516719]
[1768948869152,3.48461431,126.11,126.07,4.23516719]
[1768948869349,7.90775934,126.11,126.07,4.23516719]
[1768948870174,9.64112751,126.12,126.09,4.23516719]
[1768948870352,3.48461431,126.11,126.08,4.23516719]
[1768948870667,7.90775934,126.11,126.08,4.23516719]
[1768948871254,6.1565132,126.12,126.08,4.23516719]
[1768948871449,6.1565132,126.12,126.09,4.23516719]
[1768948871450,0.2,126.12,126.09,4.23516719]
[1768948871645,0.2,126.13,126.1,4.23516719]
[1768948872567,0.2,126.13,126.11,4.23516719]
[1768948872871,4.42314503,126.17,126.12,4.23516719]
[1768948873107,7.90775934,126.17,126.12,4.23516719]
[1768948873252,17.56,126.18,126.14,4.23516719]
[1768948873582,0.2,126.18,126.14,4.23516719]
[1768948873781,0.2,126.18,126.15,4.23516719]
[1768948874471,6.1565132,126.22,126.17,7.7197815]
[1768948874669,0.2,126.22,126.18,4.23516719]
[1768948875460,0.2,126.22,126.18,7.92489634]
[1768948875673,0.2,126.22,126.19,4.37877078]
[1768948876181,4.62314503,126.23,126.2,4.37877078]
[1768948876182,0.2,126.23,126.2,4.37877078]
[1768948876553,0.2,126.24,126.21,4.37877078]
[1768948877663,0.2,126.24,126.22,7.92267469]
[1768948877864,0.2,126.24,126.22,12.30144547]
[1768948880468,1e-08,126.24,126.23,4.37877078]
[1768948880782,1e-08,126.24,126.23,7.86338509]
[1768948881364,1e-08,126.24,126.22,7.92267469]
[1768948881566,1e-08,126.24,126.22,11.407289]
[1768948881969,1e-08,126.24,126.22,15.78605978]
[1768948882981,1e-08,126.24,126.22,7.92267469]
[1768948885364,1e-08,126.24,126.21,4.37877078]
[1768948885673,1e-08,126.24,126.2,4.37877078]
[1768948885856,4.16675828,126.24,126.2,12.3024838]
[1768948886053,3.48461432,126.24,126.19,7.92449241]
[1768948886257,4.16675827,126.21,126.16,7.86338509]
[1768948886485,4.16675827,126.21,126.17,12.30422131]
[1768948889971,4.16675827,126.23,126.18,4.37877078]
[1768948890164,7.65137258,126.23,126.18,4.37877078]
[1768948890366,4.16675827,126.21,126.16,32.12131992]
[1768948890588,4.16675827,126.21,126.17,4.37877078]
[1768948891987,4.16675827,126.21,126.17,12.30417603]
[1768948894093,7.65137258,126.21,126.17,12.30417603]
[1768948894269,4.16675827,126.22,126.18,4.37877078]
[1768948894466,1e-08,126.24,126.19,4.37877078]
[1768948894467,4.16675828,126.24,126.19,4.37877078]
[1768948895378,1e-08,126.24,126.2,4.37877078]
[1768948895577,1e-08,126.24,126.21,4.37877078]
[1768948896595,1e-08,126.24,126.22,7.92267469]
[1768948897592,7.65137258,126.23,126.18,12.30355768]
[1768948897792,3.48461431,126.22,126.18,12.30355768]
[1768948897995,4.16675827,126.23,126.18,12.30355768]
[1768948897996,7.65137258,126.23,126.18,12.30355768]
[1768948898203,4.16675827,126.23,126.19,4.37877078]
[1768948899502,4.16675827,126.22,126.18,12.30355768]
[1768948899905,4.16675828,126.24,126.19,12.30317118]
[1768948900077,4.16675827,126.23,126.19,12.30317118]
[1768948900404,4.10675828,126.23,126.19,12.30317118]
[1768948903181,4.16675828,126.24,126.2,4.37877078]
[1768948903381,7.65137259,126.24,126.2,4.37877078]
[1768948904402,7.65137259,126.24,126.2,12.30270012]
[1768948905585,4.16675828,126.24,126.2,12.30270012]
[1768948905893,4.10639834,126.23,126.2,7.92392934]
[1768948906300,4.10639834,126.23,126.2,4.44310044]
[1768948906491,7.59101266,126.24,126.2,4.44310044]
[1768948906691,4.10639835,126.24,126.2,4.44310044]
[1768948906905,7.59101266,126.24,126.2,4.44310044]
[1768948907593,7.59101266,126.24,126.2,12.36676065]
[1768948908397,4.10639835,126.24,126.2,12.36676065]
[1768948908597,7.59101266,126.24,126.2,12.36676065]
[1768948909800,4.10639834,126.23,126.2,12.36676065]
[1768948909988,3.48461431,126.23,126.19,7.92417431]
[1768948910186,3.48461431,126.23,126.19,12.36727475]
[1768948910397,3.48461431,126.22,126.18,12.36808056]
[1768948910794,3.48461431,126.22,126.17,7.92558315]
[1768948910981,7.92151729,126.24,126.16,4.44310044]
[1768948910982,3.48461431,126.2,126.16,4.44310044]
[1768948911502,3.48461431,126.2,126.15,19.81663409]
[1768948911503,3.48461431,126.19,126.15,4.44310044]
[1768948911885,7.59101265,126.19,126.15,4.44310044]
[1768948912309,3.48461431,126.18,126.15,4.44310044]
[1768948912508,7.59101265,126.17,126.13,4.44310044]
[1768948912707,7.59101265,126.17,126.13,12.37135643]
[1768948913214,4.10639834,126.15,126.1,21.78310044]
[1768948913399,4.10639834,126.14,126.1,7.92999984]
[1768948913796,4.10639834,126.14,126.1,12.37310028]
[1768948914097,4.10639834,126.14,126.04,4.64310044]
[1768948914098,7.54994866,126.11,126.04,4.64310044]
[1768948914295,7.54994866,126.11,126.05,4.44310044]
[1768948914501,7.92644261,126.16,126.05,4.44310044]
[1768948914502,17.36,126.17,126.11,4.44310044]
[1768948914703,17.36,126.17,126.13,4.44310044]
[1768948915582,4.06533435,126.18,126.13,4.44310044]
[1768948916081,4.06533435,126.18,126.14,12.37079982]
[1768948916485,4.06533435,126.19,126.14,12.37079982]
[1768948917621,4.06533435,126.19,126.15,4.44310044]
[1768948919115,4.00535681,126.19,126.15,4.44310044]
[1768948919611,3.47721544,126.21,126.16,4.44310044]
[1768948920216,3.47721544,126.22,126.17,4.44310044]
[1768948921516,4.00595659,126.22,126.17,4.44310044]
[1768948922012,7.48317203,126.22,126.17,4.44310044]
[1768948923504,3.47721544,126.22,126.18,4.44310044]
[1768948923715,7.48317204,126.24,126.19,4.44310044]
[1768948924105,4.0059566,126.24,126.19,4.44310044]
[1768948925213,1e-08,126.24,126.2,4.44310044]
[1768948925511,1e-08,126.24,126.2,12.36640624]
[1768948925809,1e-08,126.24,126.2,7.9233058]
[1768948926018,1e-08,126.24,126.21,4.44310044]
[1768948926515,1e-08,126.24,126.21,12.36624307]
[1768948928422,1e-08,126.24,126.21,4.44310044]
[1768948929704,3.47721545,126.24,126.2,4.44310044]
[1768948931003,1e-08,126.24,126.21,4.44310044]
[1768948934521,1e-08,126.24,126.19,3.47721544]
[1768948934522,7.48317203,126.23,126.19,4.44310044]
[1768948934725,7.48317203,126.22,126.17,12.36861027]
[1768948935021,4.00595659,126.2,126.16,4.44310044]
[1768948935230,7.48317203,126.21,126.16,12.36954074]
[1768948935407,7.48317203,126.21,126.17,4.26218838]
[1768948936900,4.00595659,126.21,126.17,4.26218838]
[1768948938215,4.00595659,126.21,126.17,12.18797165]
[1768948938910,3.47721544,126.22,126.18,4.26218838]
[1768948940014,3.47721544,126.21,126.18,4.26218838]
[1768948943634,3.47721544,126.21,126.17,4.26218838]
[1768948944017,4.00595659,126.2,126.16,12.18863099]
[1768948944639,7.48317203,126.21,126.17,4.26218838]
[1768948945838,4.00595659,126.21,126.17,12.18784564]
[1768948947518,7.48317203,126.21,126.17,4.26218838]
[1768948948184,7.48317203,126.2,126.15,12.18917558]
[1768948948453,4.00595659,126.19,126.15,12.18917558]
[1768948948649,7.48317203,126.19,126.15,12.18917558]
[1768948949217,4.00595659,126.2,126.16,4.26218838]
[1768948949446,7.48317203,126.2,126.16,4.26218838]
[1768948950528,4.00595659,126.2,126.16,4.26218838]
[1768948950948,7.48317203,126.2,126.16,4.26218838]
[1768948952234,3.96589702,126.17,126.08,4.26218838]
[1768948952540,3.96589702,126.17,126.03,39.67061619]
[1768948952541,3.96589702,126.17,126.13,4.26218838]
[1768948952920,7.44311246,126.17,126.13,4.26218838]
[1768948954249,7.38311247,126.17,126.13,4.26218838]
[1768948955132,3.47721544,126.16,126.13,4.26218838]
[1768948955438,3.41721545,126.16,126.13,4.26218838]
[1768948957018,7.38311247,126.17,126.13,4.26218838]
[1768948957634,3.47721544,126.16,126.13,4.26218838]
[1768948958945,7.38371247,126.16,126.12,4.26218838]
[1768948959342,15.31030732,126.16,126.12,4.26218838]
[1768948959643,7.38371247,126.16,126.12,4.26218838]
[1768948959845,3.47721544,126.14,126.1,4.26218838]
[1768948960240,7.38371247,126.14,126.1,4.26218838]
[1768948960439,7.38371247,126.13,126.09,4.26218838]
[1768948961047,3.90649703,126.11,126.07,4.26218838]
[1768948961543,7.38371247,126.13,126.08,4.26218838]
[1768948961725,3.90649703,126.12,126.08,4.26218838]
[1768948961927,3.90649703,126.13,126.08,4.26218838]
[1768948962420,3.90649703,126.15,126.08,3.47721544]
[1768948962623,24.74371247,126.15,126.1,4.26218838]
[1768948965636,32.67081087,126.15,126.1,4.26218838]
[1768948966749,3.47721544,126.14,126.1,4.26218838]
[1768948969348,7.38371247,126.14,126.1,4.26218838]
[1768948969544,3.90649703,126.13,126.09,4.28939873]
[1768948970225,3.47721544,126.14,126.09,4.28939873]
[1768948970430,7.38371247,126.14,126.09,4.28939873]
[1768948970851,3.47721544,126.12,126.07,4.28939873]
[1768948971058,3.47721544,126.12,126.06,7.76661417]
[1768948971354,3.90649703,126.11,126.06,7.76661417]
[1768948971552,3.90649703,126.11,126.06,15.69933885]
[1768948971935,3.90649703,126.11,126.07,7.76661417]